[Event "Guimaraes Open 2018"]
[Site "Guimaraes"]
[Date "2018.10.06"]
[Round "4"]
[White "Melo, David Emmanuel do V"]
[Black "Machado, Tomas Dias"]
[Result "1/2-1/2"]
[ECO "B32"]
[WhiteElo "1590"]
[BlackElo "1966"]
[Annotator "NA RC"]
[PlyCount "108"]
[EventDate "2018.10.04"]
[EventType "swiss"]
[EventCountry "POR"]
[SourceTitle "playchess.com"]
[Source "ChessBase"]
[SourceQuality "1"]
[TimeControl "5400+30"]

1. e4 {[%emt 0:00:00]} c5 {[%emt 0:03:37]} 2. Nf3 {[%emt 0:00:00]} Nc6 {[%emt 0:00:04]} 3. d4 {[%emt 0:00:00]} cxd4 {[%emt 0:00:04]} 4. Nxd4 {[%emt 0:00:00]} e5 {[%emt 0:00:05]} 5. Nb5 {[%emt 0:00:00]} d6 {[%emt 0:00:07]} 6. N1c3 {[%emt 0:00:47]} a6 {[%emt 0:00:08]} 7. Na3 {[%emt 0:00:10]} b5 {[%emt 0:00:05]} 8. Nd5 {[%emt 0:00:51]} Nf6 {[%emt 0:00:09]} 9. Bg5 {[%emt 0:00:05]} Be7 {[%emt 0:00:07]} 10. Bxf6 {[%emt 0:01:35]} Bxf6 {[%emt 0:00:11]} 11. Be2 {[%emt 0:08:27]} O-O {[%emt 0:02:16]} 12. O-O {[%emt 0:00:10]} Bg5 {[%emt 0:00:30]} 13. c3 {[%emt 0:01:27]} Ne7 {[%emt 0:02:05]} 14. Nc2 {[%emt 0:01:44]} Be6 {[%emt 0:03:12]} 15. Nce3 {[%emt 0:01:01]} Bxe3 {[%emt 0:03:16]} 16. Nxe3 {[%emt 0:00:20]} f5 {[%emt 0:01:29]} 17. exf5 {[%emt 0:02:32]} Nxf5 {[%emt 0:02:13]} 18. Nxf5 {[%emt 0:03:53]} Bxf5 {[%emt 0:00:59]} 19. Qd5+ {[%emt 0:00:37]} Kh8 {[%emt 0:00:12]} 20. Rad1 {[%emt 0:00:22]} Rf6 {[%emt 0:02:27]} 21. Bf3 {[%emt 0:00:38]} Rb8 {[%emt 0:04:28]} 22. a3 {[%emt 0:08:35]} Qe8 {[%emt 0:10:12]} 23. Rfe1 {[%emt 0:04:11]} Be6 {[%emt 0:21:48]} 24. Qc6 {[%emt 0:18:09]} Bb3 {[%emt 0:03:15]} 25. Rxd6 Qf8 {[%emt 0:10:28]} 26. Rxf6 {[%emt 0:13:47]} Qxf6 {[%emt 0:00:08]} 27. Qc7 {[%emt 0:00:44]} Re8 {[%emt 0:00:22]} 28. Bc6 {[%emt 0:00:51]} Qe7 {[%emt 0:00:51]} 29. Qxe7 {[%emt 0:00:42]} Rxe7 {[%emt 0:00:10]} 30. f4 Re6 {[%emt 0:02:23]} 31. Bb7 {[%emt 0:00:57]} Rb6 {[%emt 0:01:12]} 32. Bf3 {[%emt 0:00:52]} Rd6 {[%emt 0:01:24]} 33. Rxe5 {[%emt 0:01:17]} Kg8 {[%emt 0:00:08]} 34. Kf2 {[%emt 0:06:21]} Bc4 {[%emt 0:00:18]} 35. Ke1 {[%emt 0:01:34]} Kf7 {[%emt 0:00:50]} 36. Bd1 {[%emt 0:08:43]} Rc6 {[%emt 0:02:36]} 37. a4 {[%emt 0:01:45]} Kf6 {[%emt 0:01:24]} 38. axb5 {[%emt 0:03:15]} axb5 {[%emt 0:00:53]} 39. Be2 {[%emt 0:00:14]} Bxe2 {[%emt 0:00:41]} 40. Kxe2 {[%emt 0:00:07]} b4 {[%emt 0:00:03]} 41. cxb4 {[%emt 0:02:07]} Rc2+ {[%emt 0:00:04]} 42. Kf1 {[%emt 0:00:22]} Rxb2 {[%emt 0:01:35]} 43. Rb5 {[%emt 0:00:09]} h6 {[%emt 0:00:20]} 44. h4 {[%emt 0:01:35]} g6 {[%emt 0:01:19]} 45. Kg1 {[%emt 0:00:29]} h5 {[%emt 0:00:06]} 46. Kh2 {[%emt 0:00:32]} Rb3 {[%emt 0:00:15]} 47. g3 {[%emt 0:00:38]} Rb2+ {[%emt 0:00:24]} 48. Kh3 {[%emt 0:00:09]} Rb3 {[%emt 0:00:57]} 49. Rb8 {[%emt 0:00:19]} Kf5 {[%emt 0:00:09]} 50. Rb5+ {[%emt 0:05:27]} Ke4 {[%emt 0:01:28]} 51. Re5+ {[%emt 0:00:33]} Kf3 {[%emt 0:00:22]} 52. f5 {[%emt 0:05:00]} Rb1 {[%emt 0:00:30]} 53. Kh2 {[%emt 0:00:10]} Rb2+ {[%emt 0:00:12]} 54. Kh3 {[%emt 0:00:29]} Rb1 {[%emt 0:00:19]} 1/2-1/2

[Event "Guimaraes Open 2018"]
[Site "Guimaraes"]
[Date "2018.10.06"]
[Round "4"]
[White "Monteiro, Tomas Alexandre"]
[Black "Cimpean, Andra"]
[Result "0-1"]
[ECO "B05"]
[WhiteElo "1491"]
[BlackElo "1867"]
[Annotator "NA RC"]
[PlyCount "114"]
[EventDate "2018.10.04"]
[EventType "swiss"]
[EventCountry "POR"]
[SourceTitle "playchess.com"]
[Source "ChessBase"]
[SourceQuality "1"]
[TimeControl "5400+30"]

1. e4 {[%emt 0:00:00]} Nf6 {[%emt 0:00:00]} 2. e5 {[%emt 0:00:00]} Nd5 {[%emt 0:00:00]} 3. d4 {[%emt 0:00:17]} d6 {[%emt 0:00:00]} 4. Nf3 {[%emt 0:01:36]} Bg4 {[%emt 0:00:08]} 5. Be2 {[%emt 0:00:21]} e6 {[%emt 0:00:51]} 6. O-O {[%emt 0:01:26]} Nd7 {[%emt 0:04:05]} 7. exd6 {[%emt 0:05:19]} Bxd6 {[%emt 0:00:24]} 8. c4 {[%emt 0:05:49]} Nf4 {[%emt 0:05:26]} 9. Bxf4 {[%emt 0:00:33]} Bxf4 {[%emt 0:00:11]} 10. Nc3 {[%emt 0:00:27]} O-O {[%emt 0:00:40]} 11. Re1 {[%emt 0:04:44]} Nf6 {[%emt 0:04:30]} 12. d5 {[%emt 0:09:48]} exd5 {[%emt 0:04:14]} 13. Nxd5 {[%emt 0:00:30]} Nxd5 {[%emt 0:00:26]} 14. Qxd5 {[%emt 0:00:18]} Qxd5 {[%emt 0:04:33]} 15. cxd5 {[%emt 0:00:03]} Rad8 {[%emt 0:01:06]} 16. Rad1 {[%emt 0:00:14]} Rfe8 {[%emt 0:06:02]} 17. Kf1 {[%emt 0:06:19]} Bd6 {[%emt 0:06:42]} 18. Rd4 {[%emt 0:03:07]} Bh5 {[%emt 0:03:20]} 19. Red1 {[%emt 0:03:56]} Re7 {[%emt 0:01:55]} 20. Rh4 {[%emt 0:05:35]} Bg6 {[%emt 0:01:39]} 21. Bb5 {[%emt 0:04:20]} a6 {[%emt 0:01:23]} 22. Ba4 {[%emt 0:00:06]} h6 {[%emt 0:08:27]} 23. Re1 {[%emt 0:04:13]} Rxe1+ {[%emt 0:00:53]} 24. Kxe1 {[%emt 0:00:04]} Be7 {[%emt 0:01:04]} 25. Rd4 {[%emt 0:00:20]} Bf6 {[%emt 0:00:49]} 26. Rd2 {[%emt 0:00:51]} Be4 {[%emt 0:01:32]} 27. Bb3 {[%emt 0:01:27]} Bxf3 {[%emt 0:08:52]} 28. gxf3 {[%emt 0:00:02]} Be5 {[%emt 0:00:46]} 29. h3 {[%emt 0:01:13]} Rd6 {[%emt 0:03:56]} 30. Ke2 {[%emt 0:04:20]} Rf6 {[%emt 0:01:09]} 31. Kd3 {[%emt 0:04:36]} Rf4 {[%emt 0:02:20]} 32. Re2 {[%emt 0:06:11]} Bd6 {[%emt 0:00:09]} 33. Re8+ {[%emt 0:02:58]} Kh7 {[%emt 0:00:10]} 34. Ke3 {[%emt 0:00:18]} Rh4 {[%emt 0:00:35]} 35. Bc2+ {[%emt 0:00:31]} g6 {[%emt 0:00:05]} 36. Bd3 {[%emt 0:00:37]} Rxh3 {[%emt 0:00:34]} 37. Rb8 {[%emt 0:00:20]} b6 {[%emt 0:00:38]} 38. Bxa6 {[%emt 0:00:29]} Bc5+ {[%emt 0:00:18]} 39. Ke2 {[%emt 0:00:47]} Rh2 {[%emt 0:00:34]} 40. Rc8 {[%emt 0:01:11]} Bxf2 {[%emt 0:01:06]} 41. Kd3 {[%emt 0:00:56]} Bg3 {[%emt 0:00:29]} 42. b3 {[%emt 0:02:06]} Rxa2 {[%emt 0:00:40]} 43. Bc4 {[%emt 0:00:33]} Bd6 {[%emt 0:00:30]} 44. Re8 {[%emt 0:00:42]} h5 {[%emt 0:01:33]} 45. Re4 {[%emt 0:02:10]} Rf2 {[%emt 0:04:02]} 46. Ke3 {[%emt 0:00:26]} Bc5+ {[%emt 0:00:21]} 47. Kf4 {[%emt 0:00:40]} Kh6 {[%emt 0:00:26]} 48. Re5 {[%emt 0:00:47]} Bd6 {[%emt 0:01:36]} 49. Ke3 {[%emt 0:00:31]} Rxf3+ {[%emt 0:00:42]} 50. Kxf3 {[%emt 0:00:03]} Bxe5 {[%emt 0:00:06]} 51. Bd3 {[%emt 0:00:20]} f5 {[%emt 0:03:22]} 52. b4 {[%emt 0:00:53]} Kg5 {[%emt 0:00:27]} 53. Bf1 {[%emt 0:00:17]} Kf6 {[%emt 0:00:19]} 54. Kg2 {[%emt 0:00:25]} g5 {[%emt 0:00:10]} 55. Be2 {[%emt 0:00:09]} g4 {[%emt 0:00:08]} 56. b5 {[%emt 0:00:55]} Kg5 {[%emt 0:00:23]} 57. Kf2 {[%emt 0:00:08]} h4 {[%emt 0:00:11]} 0-1

[Event "Guimaraes Open 2018"]
[Site "Guimaraes"]
[Date "2018.10.06"]
[Round "5"]
[White "Fernandes, Ricardo Paulos"]
[Black "Silva, Daniel Frederico Va"]
[Result "1-0"]
[ECO "A06"]
[WhiteElo "2098"]
[BlackElo "1709"]
[Annotator "NA RC"]
[PlyCount "64"]
[EventDate "2018.10.04"]
[EventType "swiss"]
[EventCountry "POR"]
[SourceTitle "playchess.com"]
[Source "ChessBase"]
[SourceQuality "1"]
[TimeControl "5400+30"]

1. Nf3 {[%emt 0:00:00]} d5 {[%emt 0:00:08]} 2. g3 {[%emt 0:00:00]} Nf6 {[%emt 0:01:23]} 3. Bg2 {[%emt 0:00:00]} e6 {[%emt 0:02:09]} 4. d3 {[%emt 0:00:00]} Be7 {[%emt 0:02:33]} 5. Nbd2 {[%emt 0:00:24]} O-O {[%emt 0:02:07]} 6. O-O {[%emt 0:00:04]} c5 {[%emt 0:02:15]} 7. e3 {[%emt 0:03:57] A07: Réti Opening: New York and Capablanca Systems} (7. e4 Nc6 8. Re1 Qc7 9. e5 Nd7 10. Qe2 b5 11. Nf1 Bb7 12. Bf4 Rfc8 13. Ne3 Qd8 14. h4 h6 15. c3 b4 16. c4 Nb6 17. Rad1 Rc7 18. Ng4 Qf8 19. Qe3 Nd4 20. Nxd4 cxd4 {0-1 (44) Svidler,P (2760)-Kramnik,V (2800) Moscow 2018}) 7... Nc6 {[%emt 0:02:20]} 8. b3 {[%emt 0:00:07]} b5 {[%emt 0:04:04]} 9. Bb2 {[%emt 0:01:24]} Bb7 {[%emt 0:03:51]} 10. Re1 {[%emt 0:02:30]} Qc7 {[%emt 0:04:47]} 11. a3 {[%emt 0:00:06]} Rac8 $146 {[%emt 0:01:04]} ({Predecessor:} 11... a6 12. Nf1 Rfd8 13. h3 e5 14. Ra2 Bd6 15. e4 d4 16. N1h2 c4 17. dxc4 bxc4 18. bxc4 {0-1 (26) Ducharme,S (905)-Schalkwijk,P (1382) LSS email 2011}) 12. c4 {[%emt 0:02:33]} a6 {[%emt 0:01:06]} 13. Rc1 {[%emt 0:00:18]} Nd7 {[%emt 0:03:55]} 14. e4 {[%emt 0:06:29]} d4 {[%emt 0:07:00]} 15. cxb5 {[%emt 0:10:20]} axb5 {[%emt 0:01:23]} 16. Rf1 {[%emt 0:00:59]} Qb8 {[%emt 0:04:10]} 17. Ne1 {[%emt 0:01:52]} Nb6 {[%emt 0:04:35]} 18. f4 {[%emt 0:00:19]} f5 {[%emt 0:00:56]} 19. Qe2 {[%emt 0:08:11]} Bd6 {[%emt 0:04:15]} 20. Qh5 {[%emt 0:15:29]} Na5 {[%emt 0:07:32]} 21. Nef3 {[%emt 0:00:42]} Rf6 $2 {[%emt 0:06:56] [#]} (21... Be7 $14) 22. Ng5 $1 {[%emt 0:00:05]} h6 {[%emt 0:00:27]} 23. e5 {[%emt 0:00:20]} Bxe5 $2 {[%emt 0:04:55]} (23... Rff8 24. Nxe6 (24. exd6 Bxg2 25. Kxg2 hxg5 $16) 24... Bxg2) 24. fxe5 {[%emt 0:00:13]} Qxe5 {[%emt 0:00:13]} 25. Rce1 {[%emt 0:00:40]} Qd6 {[%emt 0:00:48]} 26. Bxb7 {[%emt 0:00:47]} Nxb7 {[%emt 0:00:10]} 27. Nde4 {[%emt 0:01:27]} fxe4 {[%emt 0:02:05]} 28. Rxf6 {[%emt 0:00:02]} hxg5 {[%emt 0:00:27]} 29. Qf7+ {[%emt 0:00:54]} Kh8 {[%emt 0:00:43]} 30. Rxe6 {[%emt 0:00:08]} Qd5 {[%emt 0:00:42]} 31. Re8+ {[%emt 0:00:19]} (31. Qg6 $142) 31... Rxe8 $18 {[%emt 0:00:18]} 32. Qxe8+ {[%emt 0:00:05]} Kh7 {[%emt 0:00:08]} 1-0

[Event "Guimaraes Open 2018"]
[Site "Guimaraes"]
[Date "2018.10.06"]
[Round "5"]
[White "Sousa, Hugo Carneiro"]
[Black "Saran Vikash Velumani"]
[Result "1-0"]
[ECO "C24"]
[WhiteElo "2014"]
[BlackElo "1464"]
[Annotator "NA RC"]
[PlyCount "69"]
[EventDate "2018.10.04"]
[EventType "swiss"]
[EventCountry "POR"]
[SourceTitle "playchess.com"]
[Source "ChessBase"]
[SourceQuality "1"]
[TimeControl "5400+30"]

1. e4 {[%emt 0:00:00]} e5 {[%emt 0:00:09]} 2. Bc4 {[%emt 0:00:00]} Nf6 {[%emt 0:01:14]} 3. d3 {[%emt 0:00:00]} d5 {[%emt 0:03:39]} 4. exd5 {[%emt 0:02:25]} Nxd5 {[%emt 0:00:45]} 5. Nf3 {[%emt 0:00:44]} Nc6 {[%emt 0:03:49]} 6. h3 {[%emt 0:01:42]} Be7 {[%emt 0:02:20] C24: Bishop's Opening: 2...Nf6} (6... Bc5 7. O-O O-O 8. c3 a6 9. Re1 Be6 10. Ng5 h6 11. Nxe6 fxe6 12. Rf1 Qh4 13. Qe1 b5 14. Bb3 Rf6 15. Nd2 Rg6 {1-0 (34) Eggleston,D (2384)-Payen,A (2360) Budapest 2016}) 7. O-O {[%emt 0:01:19]} Be6 {[%emt 0:05:32]} 8. Re1 {[%emt 0:03:00]} Qd6 {[%emt 0:06:27]} 9. Nbd2 {[%emt 0:07:11]} O-O-O $146 {[%emt 0:10:23]} ({Predecessor:} 9... h6 10. Bb5 f6 11. d4 exd4 12. Nxd4 Bd7 13. Bxc6 bxc6 14. Qh5+ Kf8 {½-½ (33) Bjerke,S (2205)-Ramirez M,E (2031) Khanty-Mansiysk 2010}) 10. Bb3 {[%emt 0:07:59]} f6 {[%emt 0:02:53]} 11. Nc4 {[%emt 0:11:41]} Qd7 {[%emt 0:01:08]} 12. d4 {[%emt 0:07:39]} Bxh3 {[%emt 0:12:11]} 13. gxh3 {[%emt 0:08:23]} Qxh3 {[%emt 0:00:38]} 14. c3 {[%emt 0:10:27]} Kb8 {[%emt 0:02:34]} 15. Nh2 {[%emt 0:02:59]} exd4 {[%emt 0:08:46]} 16. cxd4 {[%emt 0:01:53]} g5 {[%emt 0:02:32]} (16... Bb4 $5 {[%cal Rb4e1]} 17. Re4 Rhe8 $11) 17. Ne3 $2 {[%emt 0:12:30]} (17. Qf3 $11 Qxf3 18. Nxf3) 17... Bd6 {[%emt 0:02:37]} 18. Nef1 {[%emt 0:01:21]} Nf4 {[%emt 0:09:31]} 19. Qg4 {[%emt 0:04:20]} h5 {[%emt 0:03:01]} 20. Qxh3 {[%emt 0:00:45]} Nxh3+ {[%emt 0:00:08]} 21. Kg2 {[%emt 0:01:31]} Nf4+ {[%emt 0:00:27]} 22. Bxf4 $1 {[%emt 0:01:38]} Bxf4 {[%emt 0:00:08]} 23. Nf3 {[%emt 0:00:16]} g4 {[%emt 0:01:39]} 24. Nh4 {[%emt 0:00:15]} Bg5 {[%emt 0:04:20]} 25. Nf5 {[%emt 0:01:04]} Nxd4 {[%emt 0:00:52]} 26. Nxd4 {[%emt 0:00:10]} Rxd4 {[%emt 0:00:05]} 27. Rad1 {[%emt 0:00:49]} Rf4 {[%emt 0:03:49]} 28. Rd3 {[%emt 0:03:15]} h4 {[%emt 0:00:15]} 29. Rde3 {[%emt 0:01:17]} h3+ {[%emt 0:03:41]} 30. Kg3 {[%emt 0:00:11]} c6 {[%emt 0:01:38]} 31. Re8+ Rxe8 {[%emt 0:00:05]} 32. Rxe8+ {[%emt 0:01:20]} Kc7 {[%emt 0:00:06]} 33. Nh2 {[%emt 0:00:13]} f5 $18 {[%emt 0:01:18]} (33... Rd4 $1 $14) 34. Rg8 {[%emt 0:00:16]} Bf6 {[%emt 0:00:52]} 35. Kxf4 {[%emt 0:00:10]} 1-0

[Event "Guimaraes Open 2018"]
[Site "Guimaraes"]
[Date "2018.10.06"]
[Round "5"]
[White "Machado, Tomas Dias"]
[Black "Barroso, Simao Oliveira Alvi"]
[Result "1-0"]
[ECO "B17"]
[WhiteElo "1966"]
[BlackElo "1560"]
[Annotator "NA RC"]
[PlyCount "97"]
[EventDate "2018.10.04"]
[EventType "swiss"]
[EventCountry "POR"]
[SourceTitle "playchess.com"]
[Source "ChessBase"]
[SourceQuality "1"]
[TimeControl "5400+30"]

1. e4 {[%emt 0:03:27]} c6 {[%emt 0:00:00]} 2. d4 {[%emt 0:00:05]} d5 {[%emt 0:00:00]} 3. Nc3 {[%emt 0:00:02]} dxe4 {[%emt 0:00:00]} 4. Nxe4 {[%emt 0:00:05]} Nd7 {[%emt 0:01:00]} 5. Ng5 {[%emt 0:00:53]} Ngf6 {[%emt 0:01:27]} 6. Bd3 {[%emt 0:01:03]} h6 {[%emt 0:02:00]} 7. Ne6 {[%emt 0:00:28] B17: Caro-Kann: Modern Line (4...Nd7)} Qb6 {[%emt 0:01:42]} 8. Nxf8 {[%emt 0:01:46]} (8. Ne2 fxe6 9. Bg6+ Kd8 10. Nf4 Nb8 11. O-O Bd7 12. c4 Kc8 13. Qe2 Na6 14. Bf7 g5 {½-½ (32) Rozentalis,E (2593)-Velten,P (2469) Drancy 2016}) 8... Nxf8 {[%emt 0:00:38]} 9. c3 {[%emt 0:04:03]} Bg4 {[%emt 0:00:39]} 10. Qb3 {[%emt 0:01:50]} Bh5 {[%emt 0:01:44]} 11. Ne2 {[%emt 0:06:22]} Bg6 {[%emt 0:00:30]} 12. Nf4 {[%emt 0:02:45]} Bxd3 {[%emt 0:02:14]} 13. Nxd3 {[%emt 0:02:47]} N8d7 {[%emt 0:00:21]} 14. Bf4 $146 {[%emt 0:04:40]} ({Predecessor:} 14. O-O O-O {½-½ (30) Cruz,J (2159)-Padeiro,J (2284) Maia 2018}) 14... O-O {[%emt 0:01:41]} 15. O-O {[%emt 0:00:48]} e6 {[%emt 0:01:45]} 16. Rfe1 Nd5 {[%emt 0:01:50]} 17. Bg3 {[%emt 0:14:09]} Rac8 {[%emt 0:01:53]} 18. c4 {[%emt 0:13:20]} N5f6 {[%emt 0:03:28]} 19. Bd6 {[%emt 0:06:39]} Rfd8 {[%emt 0:05:12]} 20. c5 ({Günstiger ist} 20. Qc3 $14) 20... Qxb3 {[%emt 0:02:12]} 21. axb3 {[%emt 0:03:02]} a6 {[%emt 0:00:14]} 22. Nb4 {[%emt 0:11:00]} Nd5 {[%emt 0:02:14]} 23. Nxd5 {[%emt 0:00:23]} cxd5 {[%emt 0:00:10]} 24. Ra4 {[%emt 0:01:23]} Rc6 {[%emt 0:02:13]} 25. Rea1 {[%emt 0:00:58]} Rdc8 {[%emt 0:00:14]} 26. b4 {[%emt 0:02:08]} Nf6 {[%emt 0:00:15]} 27. f3 {[%emt 0:00:57]} Ne8 {[%emt 0:00:11]} 28. Bg3 {[%emt 0:00:16]} Nc7 {[%emt 0:00:25]} 29. Bxc7 R8xc7 {[%emt 0:00:22]} 30. Ra5 {[%emt 0:03:03]} f6 {[%emt 0:01:08]} 31. b5 {[%emt 0:01:05]} axb5 {[%emt 0:00:14]} 32. Rxb5 {[%emt 0:00:05]} e5 {[%emt 0:00:08]} 33. Ra7 {[%emt 0:01:12]} exd4 {[%emt 0:00:49]} 34. b4 {[%emt 0:00:06]} d3 {[%emt 0:01:58]} 35. Kf2 {[%emt 0:02:08]} Re6 {[%emt 0:00:07]} 36. Ra1 {[%emt 0:08:09]} Re2+ {[%emt 0:02:41]} 37. Kg3 {[%emt 0:00:05]} Rce7 {[%emt 0:02:59]} 38. Rd1 {[%emt 0:00:24]} d2 {[%emt 0:00:11]} 39. Ra5 {[%emt 0:03:15]} R7e3 {[%emt 0:00:15]} 40. Ra2 {[%emt 0:00:08]} ({But not} 40. Ra7 Rd3 $17) (40. b5 $1 $11) 40... Rd3 $17 {[%emt 0:00:19]} 41. Rc2 {[%emt 0:00:23]} Kf7 {[%emt 0:00:57]} 42. b5 {[%emt 0:00:04]} Ke7 {[%emt 0:00:50]} 43. c6 {[%emt 0:00:09]} bxc6 {[%emt 0:00:15]} 44. bxc6 {[%emt 0:00:04]} Kd8 {[%emt 0:00:05]} 45. c7+ {[%emt 0:00:03]} Kc8 {[%emt 0:00:10]} 46. Rb1 {[%emt 0:00:28]} d1=Q {[%emt 0:01:15]} 47. Rb8+ {[%emt 0:00:06]} Kd7 {[%emt 0:00:15]} 48. c8=Q+ {[%emt 0:00:29]} Kd6 {[%emt 0:00:12]} 49. Qd8+ {[%emt 0:01:48]} 1-0

[Event "Guimaraes Open 2018"]
[Site "Guimaraes"]
[Date "2018.10.06"]
[Round "5"]
[White "Marques, Ricardo Taborda Tri"]
[Black "Melo, David Emmanuel do V"]
[Result "1-0"]
[ECO "A61"]
[WhiteElo "1881"]
[BlackElo "1590"]
[Annotator "NA RC"]
[PlyCount "90"]
[EventDate "2018.10.04"]
[EventType "swiss"]
[EventCountry "POR"]
[SourceTitle "playchess.com"]
[Source "ChessBase"]
[SourceQuality "1"]
[TimeControl "5400+30"]

1. d4 {[%emt 0:00:00]} Nf6 {[%emt 0:00:07]} 2. c4 {[%emt 0:00:00]} e6 {[%emt 0:00:18]} 3. Nf3 {[%emt 0:00:00]} c5 {[%emt 0:00:11]} 4. d5 {[%emt 0:00:05]} exd5 {[%emt 0:03:57]} 5. cxd5 {[%emt 0:00:09]} d6 {[%emt 0:00:06]} 6. Nc3 {[%emt 0:00:06]} g6 {[%emt 0:00:40]} 7. e4 {[%emt 0:00:06]} Bg7 {[%emt 0:00:37]} 8. h3 {[%emt 0:00:07]} O-O {[%emt 0:01:31]} 9. Bd3 {[%emt 0:00:05]} a6 {[%emt 0:00:07]} 10. a4 {[%emt 0:00:05]} Nfd7 {[%emt 0:01:09]} 11. O-O {[%emt 0:04:53] A70: Modern Benoni: 6 e4 g6 7 Nf3} (11. Bg5 Bf6 12. Be3 Ne5 13. Nxe5 Bxe5 14. Qd2 f5 15. exf5 Bxf5 16. O-O Nd7 17. Bxf5 gxf5 18. Ne2 Nf6 {1-0 (58) Rogozenco,D (2517)-Negulescu,A (2435) Tusnad 2004}) 11... Ne5 {[%emt 0:00:10]} 12. Nxe5 {[%emt 0:00:23]} Bxe5 {[%emt 0:00:07]} 13. f4 {[%emt 0:04:44]} Bd4+ {[%emt 0:00:08]} 14. Kh1 {[%emt 0:00:09]} f5 {[%emt 0:08:22]} 15. Ne2 $146 {[%emt 0:01:19]} ({Predecessor:} 15. exf5 Bxf5 16. Bxf5 Rxf5 17. g4 Rf8 18. Ne4 Qh4 {0-1 (33) Miles,R (1983)-Kett,T (2193) Fishguard 2017}) 15... Bg7 {[%emt 0:03:51]} 16. Ng3 {[%emt 0:08:24]} Qh4 {[%emt 0:00:26]} 17. Qf3 {[%emt 0:00:20]} a5 {[%emt 0:08:48]} 18. exf5 {[%emt 0:03:21]} gxf5 {[%emt 0:02:28]} 19. Rb1 {[%emt 0:16:26]} Bd7 {[%emt 0:03:56]} 20. Bd2 {[%emt 0:01:12]} Qd8 $2 {[%emt 0:06:32]} ({Black should try} 20... Nc6 $14) 21. Qh5 {[%emt 0:01:01]} Qf6 {[%emt 0:03:50]} 22. Bc3 {[%emt 0:03:29]} Qg6 {[%emt 0:00:38]} 23. Bxg7 {[%emt 0:00:34]} Kxg7 {[%emt 0:00:26]} 24. Qh4 {[%emt 0:02:51]} Na6 {[%emt 0:02:39]} 25. Bxa6 {[%emt 0:08:54]} bxa6 {[%emt 0:00:40]} 26. Rf3 {[%emt 0:01:18]} Bxa4 $2 {[%emt 0:02:10]} (26... Kh8 $14) 27. Nh5+ {[%emt 0:06:18]} Kh8 {[%emt 0:00:56]} 28. Rg3 {[%emt 0:00:12]} Qh6 {[%emt 0:00:20]} 29. Rg5 {[%emt 0:01:55]} Bc2 {[%emt 0:00:16]} 30. Rc1 {[%emt 0:01:28]} Be4 {[%emt 0:06:44]} 31. Qe1 {[%emt 0:03:20]} Rf6 {[%emt 0:02:51]} 32. Qc3 {[%emt 0:01:19]} Raf8 {[%emt 0:00:35]} 33. Re1 {[%emt 0:06:42]} R8f7 {[%emt 0:01:12]} 34. Rxe4 {[%emt 0:00:53]} fxe4 {[%emt 0:00:14]} 35. Rf5 {[%emt 0:00:12]} Qg6 {[%emt 0:02:47]} 36. Rxf6 {[%emt 0:01:09]} Rxf6 {[%emt 0:00:11]} 37. Nxf6 {[%emt 0:01:31]} e3 {[%emt 0:00:52]} 38. Ng4+ {[%emt 0:01:49]} Kg8 {[%emt 0:00:11]} 39. Nxe3 {[%emt 0:00:07]} Qg3 {[%emt 0:01:15]} 40. Nf5 {[%emt 0:03:16]} Qxc3 {[%emt 0:00:27]} 41. bxc3 $18 {[%emt 0:00:06]} a4 42. Ne3 {[%emt 0:00:17]} a3 {[%emt 0:00:23]} 43. Nc2 {[%emt 0:00:07]} a2 {[%emt 0:00:05]} 44. g4 {[%emt 0:00:14]} Kf7 {[%emt 0:00:07]} 45. Kg2 {[%emt 0:00:07]} Ke7 1-0

[Event "Guimaraes Open 2018"]
[Site "Guimaraes"]
[Date "2018.10.06"]
[Round "5"]
[White "Silva, Pedro Gil Ferreira "]
[Black "Lomba, Lucas Laranjeira de"]
[Result "1-0"]
[ECO "C44"]
[WhiteElo "1837"]
[BlackElo "1398"]
[Annotator "NA RC"]
[PlyCount "47"]
[EventDate "2018.10.04"]
[EventType "swiss"]
[EventCountry "POR"]
[SourceTitle "playchess.com"]
[Source "ChessBase"]
[SourceQuality "1"]
[TimeControl "5400+30"]

1. e4 {[%emt 0:00:00]} e5 {[%emt 0:01:18]} 2. Nf3 {[%emt 0:00:00]} Nc6 3. d4 {[%emt 0:01:39]} exd4 {[%emt 0:01:26]} 4. Nxd4 {[%emt 0:00:08]} Nf6 {[%emt 0:01:22]} 5. Nxc6 {[%emt 0:00:27]} bxc6 {[%emt 0:00:29]} 6. Qe2 {[%emt 0:00:16]} Be7 {[%emt 0:03:36]} 7. e5 {[%emt 0:00:30]} Nd5 {[%emt 0:00:15]} 8. Qg4 {[%emt 0:00:16]} g6 {[%emt 0:05:44]} 9. Bh6 {[%emt 0:02:23]} d6 {[%emt 0:00:16]} 10. Qc4 {[%emt 0:00:29]} Bb7 {[%emt 0:01:45]} 11. exd6 {[%emt 0:01:44]} Qxd6 {[%emt 0:01:26]} 12. Nd2 {[%emt 0:10:16]} O-O-O {[%emt 0:04:44]} 13. O-O-O {[%emt 0:05:41]} Rhe8 {[%emt 0:05:57]} 14. Qg4+ {[%emt 0:11:31]} Kb8 15. h4 {[%emt 0:15:05]} Bc8 {[%emt 0:05:59]} 16. Qf3 {[%emt 0:04:54]} Bf8 {[%emt 0:03:26]} 17. Bxf8 {[%emt 0:03:12]} Rxf8 {[%emt 0:05:37]} 18. Nc4 {[%emt 0:04:38]} Qe6 $16 {[%emt 0:07:09]} (18... Qc5 $1 $11 {keeps the balance.}) 19. Na5 {[%emt 0:03:33]} Nb4 {[%emt 0:04:53]} 20. Bc4 {[%emt 0:01:31]} Rxd1+ {[%emt 0:02:55]} 21. Rxd1 {[%emt 0:00:30]} Qf5 {[%emt 0:00:06]} 22. Qxf5 {[%emt 0:01:01]} Bxf5 {[%emt 0:04:24]} 23. c3 {[%emt 0:00:47]} Bc2 {[%emt 0:05:26]} 24. Rd2 {[%emt 0:00:36]} 1-0